Workbook

Sheet Меню 30 руб.!!
A2: Примерное цикличное десятидневное меню дополнительного питания для учащихся группы продленного дня образовательных учреждений Альметьевского муниципального района Республики Татарстан
A3: Наименование продуктов | B3: Выход,г | C3: Белки | D3: Жиры | E3: Угл-ды | F3: Энер.ценность (ККАЛ) | G3: В1 | H3: С | I3: А | J3: Е | K3: Са | L3: Р | M3: Mg | N3: Fe
A4: 1-ая неделя
A5: ПОНЕДЕЛЬНИК
A6: Щи из свежей капусты с мясными фрикадельками, со сметаной | B6: 250/22/10 | C6: 6.41 | D6: 9.03 | E6: 8.43 | F6: 149.09 | G6: 0.08 | H6: 15.93 | I6: 14.40 | J6: 2.52 | K6: 62.78 | L6: 100.79 | M6: 30.11 | N6: 1.19
A7: Чай с сахаром | B7: 190/10 | C7: 0.07 | D7: 0.02 | E7: 10.00 | F7: 40.00 | H7: 0.03 | K7: 10.95 | L7: 2.80 | M7: 1.40 | N7: 0.26
A8: Хлеб ржаной | B8: 30 | C8: 1.98 | D8: 0.36 | E8: 11.88 | F8: 59.40 | G8: 0.03 | H8: 0.00 | I8: 0.0 | J8: 0.28 | K8: 5.8 | L8: 30 | M8: 9.4 | N8: 0.78
A9: Итого: | B9: 512 | C9: =C6+C7+C8 -> 8.46 | D9: =D6+D7+D8 -> 9.41 | E9: 30.31 | F9: 248.49 | G9: 0.11 | H9: 15.96 | I9: 14.40 | J9: 2.80 | K9: 79.53 | L9: 133.59 | M9: 40.91 | N9: 2.23
A11: ВТОРНИК
A12: Суп картофельный с пшенной крупой на мясном бульоне с мясом говядины | B12: 250/10 | C12: 4.77 | D12: 3.09 | E12: 12.16 | F12: 100.58 | G12: 0.10 | H12: 8.30 | I12: 0.00 | J12: 1.28 | K12: 27.98 | L12: 78.89 | M12: 25.74 | N12: 1.11
A13: Кисель | B13: 200 | C13: 0.6 | D13: 0.1 | E13: 20.2 | F13: 83.6 | G13: 0.002 | H13: 1.1 | K13: 15.7 | L13: 16.3 | M13: 3.36 | N13: 0.37
A14: Хлеб ржаной | B14: 30 | C14: 1.98 | D14: 0.36 | E14: 11.88 | F14: 59.40 | G14: 0.03 | H14: 0.00 | I14: 0.0 | J14: 0.28 | K14: 5.8 | L14: 30 | M14: 9.4 | N14: 0.78
A15: Итого: | B15: 490 | C15: =SUM(C12:C14) -> 7.35 | D15: =SUM(D12:D14) -> 3.55 | E15: 44.24 | F15: 243.58 | G15: 0.13 | H15: 9.40 | I15: 0.00 | J15: 1.56 | K15: 49.48 | L15: 125.19 | M15: 38.50 | N15: 2.26
A17: СРЕДА
A18: Суп из овощей на курином бульоне с мясом птицы, со сметаной | B18: 250/10/10 | C18: 4.19 | D18: 8.34 | E18: 9.54 | F18: 137.65 | G18: 0.08 | H18: 10.65 | I18: 15.82 | J18: 2.45 | K18: 49.01 | L18: 71.78 | M18: 23.68 | N18: 0.98
A19: Напиток из изюма | B19: 200 | C19: 0.346 | D19: 0.076 | E19: 19.85 | F19: 82.2 | G19: 0.022 | H19: 0 | I19: 0 | J19: 0.076 | K19: 20.32 | L19: 19.36 | M19: 8.12 | N19: 0.45
A20: Хлеб ржаной | B20: 30 | C20: 1.98 | D20: 0.36 | E20: 11.88 | F20: 59.40 | G20: 0.03 | H20: 0.00 | I20: 0.0 | J20: 0.28 | K20: 5.8 | L20: 30 | M20: 9.4 | N20: 0.78
A21: Итого: | B21: 500 | C21: =SUM(C18:C20) -> 6.51 | D21: =SUM(D18:D20) -> 8.78 | E21: 41.27 | F21: 279.25 | G21: 0.14 | H21: 10.65 | I21: 15.82 | J21: 2.80 | K21: 75.13 | L21: 121.14 | M21: 41.20 | N21: 2.21
A23: ЧЕТВЕРГ
A24: Шулпа с говядиной и овощами | B24: 250/25 | C24: 12.04 | D24: 9.26 | E24: 18.75 | F24: 210.40 | G24: 0.09 | H24: 10.50 | I24: 0.00 | J24: 2.45 | K24: 38.06 | L24: 106.57 | M24: 28.17 | N24: 1.36
A26: Компот из сухофруктов | B26: 200 | C26: 0.66 | D26: 0.09 | E26: 22.03 | F26: 92.90 | G26: 0.02 | H26: 0.73 | I26: 0.00 | J26: 0.51 | K26: 32.48 | L26: 23.44 | M26: 17.46 | N26: 0.70
A27: Хлеб ржаной | B27: 30 | C27: 1.98 | D27: 0.36 | E27: 11.88 | F27: 59.40 | G27: 0.03 | H27: 0.00 | I27: 0.0 | J27: 0.28 | K27: 5.8 | L27: 30 | M27: 9.4 | N27: 0.78
A28: Итого: | B28: 505 | C28: =SUM(C24:C27) -> 14.68 | D28: =SUM(D24:D27) -> 9.71 | E28: 52.66 | F28: 362.70 | G28: 0.14 | H28: 11.23 | I28: 0.00 | J28: 3.24 | K28: 76.34 | L28: 160.01 | M28: 55.03 | N28: 2.84
A30: ПЯТНИЦА
A31: Рассольник ленинградский с мясными фрикадельками, со сметаной | B31: 250/22/10 | C31: 6.67 | D31: 9.17 | E31: 12.50 | F31: 166.59 | G31: 0.11 | H31: 8.53 | I31: 14.40 | J31: 2.52 | K31: 42.68 | L31: 108.51 | M31: 32.16 | N31: 1.29
A32: Напиток из шиповника | B32: 200 | C32: 0.678 | D32: 0.278 | E32: 10.76 | F32: 48.2 | G32: 0.012 | H32: 100 | I32: 0 | J32: 0.76 | K32: 21.34 | L32: 3.44 | M32: 3.44 | N32: 0.634
A33: Хлеб ржаной | B33: 30 | C33: 1.98 | D33: 0.36 | E33: 11.88 | F33: 59.40 | G33: 0.03 | H33: 0.00 | I33: 0.0 | J33: 0.28 | K33: 5.8 | L33: 30 | M33: 9.4 | N33: 0.78
A34: Итого: | B34: 512 | C34: =SUM(C31:C33) -> 9.32 | D34: 9.81 | E34: 35.14 | F34: 274.19 | G34: 0.16 | H34: 108.53 | I34: 14.40 | J34: 3.56 | K34: 69.82 | L34: 141.95 | M34: 45.00 | N34: 2.70
A35: СУББОТА
A36: Суп картофельный с клецками и с мясом птицы | B36: 250/10 | C36: 5.90 | D36: 6.45 | E36: 18.83 | F36: 170.45 | G36: 0.11 | H36: 5.99 | I36: 26.87 | J36: 1.72 | K36: 38.76 | L36: 88.63 | M36: 27.38 | N36: 1.36
A37: Компот из изюма и яблок | B37: 200 | C37: 0.38 | D37: 0.13 | E37: 29.03 | F37: 119.94 | G37: 0.022 | J37: 0.076 | K37: 20.32 | L37: 19.36 | M37: 8.12 | N37: 0.45
A38: Хлеб ржаной | B38: 30 | C38: 1.98 | D38: 0.36 | E38: 11.88 | F38: 59.40 | G38: 0.03 | H38: 0.00 | I38: 0.0 | J38: 0.28 | K38: 5.8 | L38: 30 | M38: 9.4 | N38: 0.78
A39: Итого: | B39: 490 | C39: =SUM(C36:C38) -> 8.26 | D39: 6.94 | E39: 59.74 | F39: 349.79 | G39: 0.17 | H39: 5.99 | I39: 26.87 | J39: 2.07 | K39: 64.88 | L39: 137.99 | M39: 44.90 | N39: 2.59
A40: Всего за 6 дней 1 недели: | B40: =B9+B15+B21+B28+B34+B39 -> 3009 | C40: =C9+C15+C21+C28+C34+C39 -> 54.59 | D40: 48.19 | E40: 263.36 | F40: 1758.01 | G40: 0.85 | H40: 161.74 | I40: 71.49 | J40: 16.03 | K40: 415.19 | L40: 819.85 | M40: 265.53 | N40: 14.83
A41: 2-ая неделя
A42: ПОНЕДЕЛЬНИК
A43: Борщ из свежей капусты с мясом птицы, со сметаной | B43: 250/10/10 | C43: 4.40 | D43: 8.28 | E43: 11.33 | F43: 146.15 | G43: 0.06 | H43: 10.95 | I43: 15.82 | J43: 2.52 | K43: 63.89 | L43: 77.10 | M43: 29.05 | N43: 1.43
A45: Компот из сухофруктов | B45: 200 | C45: 0.662 | D45: 0.09 | E45: 22.03 | F45: 92.9 | G45: 0.016 | H45: 0.726 | I45: 0 | J45: 0.508 | K45: 32.48 | L45: 23.44 | M45: 17.46 | N45: 0.698
A46: Хлеб ржаной | B46: 30 | C46: 1.98 | D46: 0.36 | E46: 11.88 | F46: 59.40 | G46: 0.03 | H46: 0.00 | I46: 0.0 | J46: 0.28 | K46: 5.8 | L46: 30 | M46: 9.4 | N46: 0.78
A47: Итого: | B47: 500 | C47: =SUM(C43:C46) -> 7.04 | D47: =SUM(D43:D46) -> 8.73 | E47: 45.24 | F47: 298.45 | G47: 0.11 | H47: 11.68 | I47: 15.82 | J47: 3.31 | K47: 102.17 | L47: 130.54 | M47: 55.91 | N47: 2.91
A49: ВТОРНИК
A50: Солянка по-домашнему | B50: 250 | C50: 8.03 | D50: 9.15 | E50: 7.19 | F50: 168.63 | G50: 0.01 | H50: 0.75 | I50: 0.00 | J50: 1.15 | K50: 22.58 | L50: 12.48 | M50: 5.53 | N50: 0.20
A51: Напиток из изюма | B51: 200 | C51: 0.35 | D51: 0.08 | E51: 19.85 | F51: 82.20 | G51: 0.02 | H51: 0.00 | I51: 0.00 | J51: 0.08 | K51: 20.32 | L51: 19.36 | M51: 8.12 | N51: 0.45
A52: Хлеб ржаной | B52: 30 | C52: 1.98 | D52: 0.36 | E52: 11.88 | F52: 59.40 | G52: 0.03 | H52: 0.00 | I52: 0.0 | J52: 0.28 | K52: 5.8 | L52: 30 | M52: 9.4 | N52: 0.78
A53: Итого: | B53: 480 | C53: =C50+C51+C52 -> 10.36 | D53: =D50+D51+D52 -> 9.59 | E53: 38.92 | F53: 310.23 | G53: 0.07 | H53: 0.75 | I53: 0.00 | J53: 1.51 | K53: 48.70 | L53: 61.84 | M53: 23.05 | N53: 1.43
A55: СРЕДА
A56: Рассольник ленинградский с куриными фрикадельками, со сметаной | B56: 250/22/10 | C56: 5.28 | D56: 9.50 | E56: 14.09 | F56: 168.77 | G56: 0.10 | H56: 8.64 | I56: 18.76 | J56: 2.43 | K56: 48.07 | L56: 85.73 | M56: 28.25 | N56: 1.19
A57: Кисель | B57: 200 | C57: 0.6 | D57: 0.1 | E57: 20.2 | F57: 83.6 | G57: 0.002 | H57: 1.1 | K57: 15.7 | L57: 16.3 | M57: 3.36 | N57: 0.37
A58: Хлеб ржаной | B58: 30 | C58: 1.98 | D58: 0.36 | E58: 11.88 | F58: 59.40 | G58: 0.03 | H58: 0.00 | I58: 0.0 | J58: 0.28 | K58: 5.8 | L58: 30 | M58: 9.4 | N58: 0.78
A59: Итого: | B59: 512 | C59: =C56+C57+C58 -> 7.86 | D59: =D56+D57+D58 -> 9.96 | E59: 46.17 | F59: 311.77 | G59: 0.14 | H59: 9.74 | I59: 18.76 | J59: 2.71 | K59: 69.57 | L59: 132.03 | M59: 41.01 | N59: 2.34
A61: ЧЕТВЕРГ
A62: Суп картофельный с фасолью, с мясными фрикадельками | B62: 250/22 | C62: 9.51 | D62: 7.92 | E62: 16.30 | F62: 176.39 | G62: 0.17 | H62: 5.92 | I62: 4.40 | J62: 2.58 | K62: 55.01 | L62: 183.66 | M62: 45.38 | N62: 2.15
A63: Чай с сахаром | B63: 190/10 | C63: 0.07 | D63: 0.02 | E63: 10 | F63: 40.00 | H63: 0.03 | K63: 10.95 | L63: 2.8 | M63: 1.4 | N63: 0.26
A64: Хлеб ржаной | B64: 30 | C64: 1.98 | D64: 0.36 | E64: 11.88 | F64: 59.40 | G64: 0.03 | H64: 0.00 | I64: 0.0 | J64: 0.28 | K64: 5.8 | L64: 30 | M64: 9.4 | N64: 0.78
A65: Итого: | B65: 502 | C65: =C62+C63+C64 -> 11.56 | D65: =D62+D63+D64 -> 8.30 | E65: 38.18 | F65: 275.79 | G65: 0.20 | H65: 5.95 | I65: 4.40 | J65: 2.86 | K65: 71.76 | L65: 216.46 | M65: 56.18 | N65: 3.19
A67: ПЯТНИЦА
A68: Суп-лапша домашняя с мясом птицы | B68: 250/10 | C68: 4.91 | D68: 7.40 | E68: 11.65 | F68: 141.95 | G68: 0.05 | H68: 0.74 | I68: 18.32 | J68: 2.67 | K68: 33.91 | L68: 54.90 | M68: 12.70 | N68: 0.84
A69: Чай с сахаром и с лимоном | B69: 185/10/5 | C69: 0.115 | D69: 0.025 | E69: 10.15 | F69: 41.7 | G69: 0.002 | H69: 2.03 | I69: 0 | J69: 0.01 | K69: 12.95 | L69: 3.9 | M69: 2 | N69: 0.29
A70: Хлеб ржаной | B70: 30 | C70: 1.98 | D70: 0.36 | E70: 11.88 | F70: 59.40 | G70: 0.03 | H70: 0.00 | I70: 0.0 | J70: 0.28 | K70: 5.8 | L70: 30 | M70: 9.4 | N70: 0.78
A71: Итого: | B71: 490 | C71: =SUM(C68:C70) -> 7.00 | D71: =SUM(D68:D70) -> 7.78 | E71: 33.68 | F71: 243.05 | G71: 0.09 | H71: 2.77 | I71: 18.32 | J71: 2.96 | K71: 52.66 | L71: 88.80 | M71: 24.10 | N71: 1.91
A72: СУББОТА
A73: Суп картофельный с горохом и с мясными фрикадельками | B73: 250/10 | C73: 5.90 | D73: 6.45 | E73: 18.83 | F73: 170.45 | G73: 0.11 | H73: 5.99 | I73: 26.87 | J73: 1.72 | K73: 38.76 | L73: 88.63 | M73: 27.38 | N73: 1.36
A74: Компот из сухофруктов | B74: 200 | C74: 0.662 | D74: 0.09 | E74: 22.03 | F74: 92.9 | G74: 0.016 | H74: 0.726 | I74: 0 | J74: 0.508 | K74: 32.48 | L74: 23.44 | M74: 17.46 | N74: 0.698
A75: Хлеб ржаной | B75: 30 | C75: 1.98 | D75: 0.36 | E75: 11.88 | F75: 59.40 | G75: 0.03 | H75: 0.00 | I75: 0.0 | J75: 0.28 | K75: 5.8 | L75: 30 | M75: 9.4 | N75: 0.78
A76: Итого: | B76: 490 | C76: =C73+C74+C75 -> 8.54 | D76: =D73+D74+D75 -> 6.90 | E76: 52.74 | F76: 322.75 | G76: 0.16 | H76: 6.71 | I76: 26.87 | J76: 2.51 | K76: 77.04 | L76: 142.07 | M76: 54.24 | N76: =N73+N74+N75 -> 2.84
A77: Всего за 6 дней 2 недели: | B77: =B47+B53+B59+B65+B71+B76 -> 2974 | C77: =C47+C53+C59+C65+C71+C76 -> 52.35 | D77: 51.26 | E77: 254.93 | F77: 1762.04 | G77: 0.77 | H77: 37.60 | I77: 84.17 | J77: 15.85 | K77: 421.89 | L77: 771.73 | M77: 254.49 | N77: 14.62
A78: Всего за 12 дней: | B78: =B40+B77 -> 5983 | C78: =C40+C77 -> 106.95 | D78: 99.45 | E78: 518.29 | F78: 3520.05 | G78: 1.61 | H78: 199.34 | I78: 155.66 | J78: 31.88 | K78: 837.08 | L78: 1591.58 | M78: 520.02 | N78: 29.45
A79: В среднем на 1 учащегося в день | B79: =B78/12 -> 499 | C79: =C78/12 -> 8.91 | D79: 8.29 | E79: 43.19 | F79: 293.34 | G79: 0.13 | H79: 16.61 | I79: 12.97 | J79: 2.66 | K79: 69.76 | L79: 132.63 | M79: 43.34 | N79: 2.45
